bitfinex/quotes_BTCUSD_20241111
["timestamp","ask_amount","ask_price","bid_price","bid_amount"]
[1731341959635,0.1773144,84552.0,84542.0,0.45485]
[1731341959864,0.0478,84556.0,84542.0,0.45485]
[1731341960759,0.028,84548.0,84542.0,0.35485]
[1731341960977,0.005,84545.0,84542.0,0.35485]
[1731341961188,0.0017,84543.0,84542.0,0.35485]
[1731341961412,0.12164075,84543.0,84542.0,0.35485]
[1731341961859,0.12364075,84543.0,84542.0,0.35485]
[1731341962293,0.12164075,84543.0,84542.0,0.35485]
[1731341962737,0.14964075,84543.0,84542.0,0.35485]
[1731341962973,0.28124075,84543.0,84542.0,0.30003703]
[1731341963842,0.28124075,84543.0,84542.0,0.17193703]
[1731341964058,0.28124075,84543.0,84542.0,0.04383703]
[1731341964263,0.007,84528.0,84516.0,0.00085]
[1731341964482,0.11994075,84527.0,84526.0,0.1773144]
[1731341964694,0.005,84536.0,84516.0,0.00085]
[1731341964903,0.1773144,84523.0,84516.0,0.00085]
[1731341965119,0.14794075,84535.0,84516.0,0.00085]
[1731341965329,0.002,84531.0,84516.0,0.00085]
[1731341965532,0.005,84520.0,84516.0,0.00085]
[1731341965742,0.11994075,84519.0,84516.0,0.00085]
[1731341965977,0.002,84518.0,84516.0,0.00085]
[1731341966197,0.11994075,84517.0,84516.0,0.00085]
[1731341967568,0.24923483,84517.0,84516.0,0.00085]
[1731341967780,0.23674075,84517.0,84516.0,0.00085]
[1731341969679,0.24174075,84517.0,84516.0,0.00085]
[1731341969940,0.24174075,84517.0,84479.0,0.1773144]
[1731341969941,0.002,84490.0,84479.0,0.1773144]
[1731341970151,0.002,84490.0,84489.0,0.1773144]
[1731341970152,0.11994075,84490.0,84489.0,0.1773144]
[1731341970380,0.11994075,84490.0,84470.0,0.001338]
[1731341970830,0.1773144,84489.0,84470.0,0.001338]
[1731341971246,0.002,84496.0,84470.0,0.001338]
[1731341971247,0.005,84507.0,84470.0,0.001338]
[1731341971461,0.005,84529.0,84470.0,0.001338]
[1731341971462,0.002,84524.0,84475.0,0.11994075]
[1731341971690,0.005,84526.0,84475.0,0.11994075]
[1731341971691,0.1773144,84489.0,84476.0,0.00236687]
[1731341971908,0.1773144,84489.0,84477.0,0.11994075]
[1731341972118,0.15011598,84489.0,84478.0,0.10236707]
[1731341972365,0.005,84521.0,84480.0,0.1]
[1731341972366,0.1773144,84488.0,84480.0,0.1]
[1731341972573,0.1773144,84488.0,84478.0,0.00236707]
[1731341972574,0.005,84522.0,84482.0,0.1]
[1731341972724,0.005,84527.0,84482.0,0.1]
[1731341972725,0.17715124,84487.0,84484.0,0.1]
[1731341972939,0.0832,84529.0,84486.0,0.1]
[1731341973144,0.1773144,84497.0,84494.0,0.1]
[1731341973342,0.0067,84538.0,84498.0,0.023]
[1731341973343,0.0017,84538.0,84498.0,0.023]
[1731341973522,0.1773144,84521.0,84509.0,0.0498]
[1731341973975,0.0017,84538.0,84507.0,0.1]
[1731341974193,0.1773144,84523.0,84507.0,0.1]
[1731341974389,0.0017,84538.0,84507.0,0.1]
[1731341974611,0.1773144,84523.0,84508.0,0.11994075]
[1731341974838,0.1773144,84523.0,84509.0,0.1]
[1731341975049,0.1773144,84514.0,84509.0,0.06994075]
[1731341975273,0.1773144,84523.0,84509.0,0.06994075]
[1731341975456,0.005,84536.0,84509.0,0.06994075]
[1731341975657,0.1773144,84523.0,84509.0,0.06994075]
[1731341975861,0.1773144,84523.0,84492.0,0.0498]
[1731341976079,0.1773144,84523.0,84493.0,0.11994075]
[1731341976282,0.1773144,84514.0,84493.0,0.11994075]
[1731341976432,0.1773144,84513.0,84493.0,0.11994075]
[1731341977055,0.1773144,84513.0,84494.0,0.1]
[1731341977280,0.1773144,84513.0,84496.0,0.1]
[1731341977500,0.1773144,84513.0,84498.0,0.1]
[1731341977699,0.1773144,84513.0,84500.0,0.1]
[1731341977947,0.1773144,84523.0,84502.0,0.1]
[1731341978274,0.1773144,84523.0,84504.0,0.1]
[1731341978275,0.1773144,84514.0,84504.0,0.1]
[1731341978476,0.1773144,84514.0,84506.0,0.1]
[1731341978689,0.1773144,84514.0,84507.0,0.11994075]
[1731341978905,0.1773144,84514.0,84508.0,0.1]
[1731341979151,0.1773144,84514.0,84507.0,0.355]
[1731341979364,0.12494075,84513.0,84509.0,0.35499]
[1731341979573,0.12494075,84513.0,84509.0,0.25499]
[1731341980205,0.11994075,84513.0,84509.0,0.25499]
[1731341980407,0.12494075,84513.0,84509.0,0.25499]
[1731341980920,0.005,84512.0,84509.0,0.25499]
[1731341981127,0.11994075,84511.0,84509.0,0.25499]
[1731341981336,0.0792,84518.0,84509.0,0.25499]
[1731341981527,0.11994075,84510.0,84509.0,0.25499]
[1731341981817,0.12194075,84510.0,84509.0,0.25499]
[1731341982501,0.11994075,84510.0,84509.0,0.25499]
[1731341982927,0.13692185,84523.0,84510.0,0.1]
[1731341983140,0.22362211,84523.0,84510.0,0.1]
[1731341983345,0.21299363,84523.0,84510.0,0.1]
[1731341983554,0.21299363,84523.0,84512.0,0.1]
[1731341983805,0.21299363,84523.0,84514.0,0.1]
[1731341984001,0.1773144,84522.0,84515.0,0.45497]
[1731341984200,0.1773144,84522.0,84516.0,0.1]
[1731341984432,0.17232619,84522.0,84516.0,0.1]
[1731341984661,0.17232619,84522.0,84518.0,0.1]
[1731341985345,0.002,84520.0,84518.0,0.1]
[1731341985609,0.002,84531.0,84520.0,0.1]
[1731341985823,0.1773144,84523.0,84522.0,0.1]
[1731341986033,0.11994075,84530.0,84522.0,0.1]
[1731341986240,0.11994075,84530.0,84523.0,0.45493]
[1731341986464,0.11994075,84530.0,84524.0,0.1]
[1731341986677,0.0037,84543.0,84527.0,0.005]
[1731341986678,0.0017,84543.0,84527.0,0.005]
[1731341986891,0.0017,84543.0,84526.0,0.1]
[1731341986892,0.1773144,84535.0,84526.0,0.1]
[1731341987136,0.0017,84543.0,84529.0,0.1]
[1731341987345,0.0017,84543.0,84531.0,0.1]
[1731341987565,0.1773144,84537.0,84533.0,0.1]
[1731341987783,0.1773144,84537.0,84534.0,0.45489]
[1731341987988,0.1773144,84537.0,84535.0,0.1]
[1731341988409,0.1773144,84537.0,84536.0,0.55488]
[1731341988828,0.0017,84543.0,84537.0,0.1]
[1731341989520,0.002,84539.0,84537.0,0.1]
[1731341990262,0.14464075,84538.0,84537.0,0.099654]
[1731341990485,0.14464075,84538.0,84536.0,0.45488]
[1731341990713,0.11994075,84537.0,84536.0,0.45488]
[1731341991652,0.14294075,84537.0,84536.0,0.45488]
[1731341991853,0.14494075,84537.0,84536.0,0.45488]
[1731341992275,0.14494075,84537.0,84536.0,0.55488]
[1731341992506,0.14294075,84537.0,84536.0,0.55488]
[1731341992828,0.11994075,84537.0,84536.0,0.55488]
[1731341993048,0.12194075,84537.0,84536.0,0.55488]
[1731341993456,0.14494075,84537.0,84536.0,0.55488]
[1731341994991,0.14494075,84537.0,84536.0,0.54709107]
[1731341995169,0.24494075,84537.0,84536.0,0.54709107]
[1731341995539,0.24294075,84537.0,84536.0,0.54709107]
[1731341995738,0.21994075,84537.0,84536.0,0.54709107]
[1731341997693,0.22164075,84537.0,84536.0,0.54709107]
[1731341999600,0.1017,84537.0,84536.0,0.54709107]
[1731341999814,0.002,84560.0,84536.0,0.54709107]
[1731341999815,0.0821,84570.0,84537.0,0.1]
[1731341999977,0.1773144,84542.0,84539.0,0.1]
[1731342000180,0.1773144,84551.0,84539.0,0.1]
[1731342000181,0.1773144,84551.0,84540.0,0.46265]
[1731342000385,0.1773144,84551.0,84548.0,0.10352895]
[1731342000589,0.11994075,84561.0,84549.0,0.2852956]
[1731342000797,0.1773144,84553.0,84550.0,0.1]
[1731342001122,0.11994075,84561.0,84550.0,0.1]
[1731342001324,0.11994075,84561.0,84552.0,0.1]
[1731342001569,0.023,84560.0,84554.0,0.1]
[1731342001778,0.025,84555.0,84554.0,0.1]
[1731342001996,0.025,84554.0,84553.0,0.63991]
[1731342002207,0.14494075,84554.0,84553.0,0.63991]
[1731342002423,0.11994075,84554.0,84553.0,0.63991]
[1731342002629,0.1773144,84569.0,84553.0,0.63991]
[1731342002840,0.1773144,84560.0,84553.0,0.63991]
[1731342003056,0.11994075,84568.0,84553.0,0.63991]
[1731342003261,0.0017,84570.0,84556.0,0.1]
[1731342003262,0.1773144,84567.0,84556.0,0.1]
[1731342003492,0.1773144,84567.0,84566.0,0.1]
[1731342003698,0.0017,84570.0,84567.0,0.1]
[1731342003901,0.0017,84570.0,84568.0,0.74345919]
[1731342004122,0.0017,84570.0,84569.0,0.1]
[1731342004350,0.0017,84570.0,84569.0,0.20361919]
[1731342004576,0.0179318,84582.0,84569.0,0.74720463]
[1731342004776,0.1773144,84579.0,84573.0,0.1]
[1731342004995,0.1773144,84579.0,84574.0,0.63982]
[1731342005201,0.0179318,84582.0,84575.0,0.1]
[1731342005628,0.0179318,84582.0,84566.0,0.005]
[1731342005629,0.0179318,84582.0,84577.0,0.1]
[1731342006285,0.0479318,84582.0,84577.0,0.1]
[1731342006696,0.0479318,84582.0,84581.0,0.20353455]
[1731342007110,0.16787255,84582.0,84581.0,0.20355085]
[1731342007357,0.16787255,84582.0,84553.0,0.005]
[1731342007358,0.023,84581.0,84578.0,0.6398]
[1731342007562,0.0549318,84582.0,84581.0,0.51879]
[1731342007781,0.0599318,84582.0,84581.0,0.51879]
[1731342008250,0.002,84551.0,84548.0,0.1773144]
[1731342008472,0.11994075,84550.0,84548.0,0.1773144]
[1731342008678,0.11994075,84550.0,84535.0,0.10355085]
[1731342008886,0.11994075,84550.0,84516.0,0.03033696]
[1731342008887,0.005,84556.0,84555.0,6.87805925]
[1731342009086,0.01,84556.0,84555.0,6.87805925]
[1731342009643,0.033,84556.0,84555.0,6.87805925]
[1731342010223,0.15294075,84556.0,84555.0,6.87805925]
[1731342010424,0.14794075,84556.0,84555.0,6.87805925]
[1731342010623,0.15294075,84556.0,84555.0,6.87805925]
[1731342010993,0.12994075,84556.0,84555.0,6.87805925]
[1731342011481,0.11994075,84556.0,84555.0,6.87805925]
[1731342011696,0.12494075,84556.0,84555.0,6.87805925]
[1731342011897,0.11994075,84556.0,84555.0,6.87805925]
[1731342012847,0.12494075,84556.0,84555.0,6.87805925]
[1731342013334,0.12994075,84556.0,84555.0,6.87805925]
[1731342013558,0.15294075,84556.0,84555.0,6.87805925]
[1731342013787,0.14794075,84556.0,84555.0,6.87805925]
[1731342014015,0.15294075,84556.0,84555.0,6.87805925]
[1731342015161,0.12494075,84556.0,84555.0,6.87805925]
[1731342016274,0.12994075,84556.0,84555.0,6.87805925]
[1731342016738,0.14794075,84556.0,84555.0,6.87805925]
[1731342016951,0.11994075,84556.0,84555.0,6.87805925]
[1731342018328,0.1773144,84566.0,84565.0,6.7481185]
[1731342018712,0.0804,84591.0,84565.0,6.7431185]
[1731342019035,0.1773144,84579.0,84566.0,0.1]
[1731342019183,0.1773144,84598.0,84566.0,0.1]
[1731342019409,0.1773144,84578.0,84566.0,0.1]
[1731342019602,0.11994075,84577.0,84566.0,0.1]
[1731342020034,0.11994075,84577.0,84566.0,0.097]
[1731342020281,0.11994075,84568.0,84565.0,6.7431185]
[1731342020487,0.11994075,84566.0,84565.0,6.7431185]
[1731342020941,0.14294075,84566.0,84565.0,6.7431185]
[1731342021153,0.14294075,84566.0,84528.0,0.005]
[1731342021154,0.023,84565.0,84516.0,0.10879052]
[1731342021383,0.023,84563.0,84547.0,0.1773144]
[1731342021591,0.023,84563.0,84529.0,0.1773144]
[1731342021592,0.11994075,84548.0,84529.0,0.1773144]
[1731342021804,0.11994075,84548.0,84540.0,0.0756]
[1731342022024,0.1773144,84577.0,84543.0,0.005]
[1731342022025,0.1773144,84563.0,84543.0,0.005]
[1731342022227,0.1773144,84563.0,84548.0,0.005]
[1731342022228,0.1773144,84551.0,84548.0,0.005]
[1731342022403,0.1773144,84563.0,84548.0,0.005]
[1731342022568,0.11994075,84562.0,84548.0,0.005]
[1731342023189,0.11994075,84562.0,84555.0,0.000849]
[1731342023589,0.11994075,84562.0,84556.0,0.1]
[1731342024624,0.11994075,84562.0,84555.0,0.000849]
[1731342024867,0.1773144,84577.0,84569.0,0.1]
[1731342025104,0.1773144,84577.0,84573.0,0.005]
[1731342025338,0.1773144,84577.0,84569.0,0.1]
[1731342025339,0.001698,84578.0,84577.0,0.005]
[1731342026870,0.1779844,84607.0,84581.0,0.005]
[1731342027105,0.1779844,84607.0,84590.0,0.005]
[1731342027320,0.1779844,84607.0,84593.0,0.005]
[1731342027963,0.1779844,84607.0,84589.0,0.01]
[1731342028190,0.1779844,84607.0,84593.0,0.005]
[1731342028454,0.1779844,84607.0,84598.0,0.1264]
[1731342028686,0.1773144,84606.0,84599.0,0.11]
[1731342029559,0.00067,84607.0,84599.0,0.11]
[1731342030656,0.00067,84607.0,84603.0,0.01]
[1731342030863,0.00067,84607.0,84606.0,0.01]
[1731342031073,0.101698,84615.0,84609.0,0.1344]
[1731342031305,0.101698,84615.0,84609.0,0.37970425]
[1731342031528,0.101698,84615.0,84609.0,0.37734075]
[1731342032007,0.101698,84615.0,84609.0,0.38096647]
[1731342032214,0.101698,84615.0,84613.0,0.005]
[1731342032442,0.101698,84615.0,84614.0,0.12494075]
[1731342032645,0.023598,84615.0,84614.0,0.22494075]
[1731342033092,0.023598,84615.0,84614.0,0.22994075]
[1731342033356,0.1773144,84632.0,84621.0,0.0529]
[1731342033558,0.1773144,84632.0,84621.0,0.0579]
[1731342033769,0.1699944,84632.0,84622.0,0.1]
[1731342033979,0.1699944,84632.0,84631.0,0.005]
[1731342034188,0.00067,84646.0,84631.0,0.01]
[1731342034395,0.00067,84646.0,84645.0,0.005]
[1731342034396,0.1779844,84646.0,84645.0,0.005]
[1731342034661,0.00067,84646.0,84645.0,0.2372]
[1731342035333,0.00067,84646.0,84645.0,0.1492]
[1731342035565,0.00067,84646.0,84645.0,0.15275027]
[1731342035785,0.00067,84646.0,84645.0,0.05275027]
[1731342036449,0.1703514,84655.0,84645.0,0.05275027]
[1731342036661,0.29029215,84655.0,84645.0,0.05275027]
[1731342036872,0.29029215,84655.0,84645.0,0.0492]
[1731342037075,0.11994075,84655.0,84645.0,0.0492]
[1731342037731,1.799698,84656.0,84648.0,0.005]
[1731342037961,1.9770124,84656.0,84651.0,0.1]
[1731342038213,1.9770124,84656.0,84648.0,0.005]
[1731342038214,1.799698,84656.0,84648.0,0.005]
[1731342039535,1.799698,84656.0,84652.0,0.005]
[1731342039749,1.9770124,84656.0,84655.0,0.005]
[1731342039956,1.9770124,84656.0,84650.0,0.005]
[1731342040197,1.799698,84656.0,84649.0,0.005]
[1731342040860,1.799698,84656.0,84624.0,0.005]
[1731342040861,0.11994075,84655.0,84636.0,0.005]
[1731342041059,0.11994075,84655.0,84633.0,0.01]
[1731342041308,0.11994075,84655.0,84636.0,0.005]
[1731342041965,0.1773144,84647.0,84630.0,0.1323]
[1731342042186,0.11994075,84646.0,84631.0,0.1823144]
[1731342042417,0.11994075,84646.0,84631.0,0.005]
[1731342042622,1.9770124,84656.0,84634.0,0.005]
[1731342042840,0.1773144,84647.0,84636.0,0.005]
[1731342043065,0.1773144,84647.0,84637.0,0.005]
[1731342043313,1.799698,84656.0,84646.0,0.1773144]
[1731342043548,1.799698,84656.0,84655.0,0.0589]
[1731342043727,1.9770124,84656.0,84655.0,0.2339]
[1731342043990,1.9770124,84656.0,84655.0,0.26868033]
[1731342044190,1.799698,84656.0,84655.0,0.26868033]
[1731342044412,1.79983819,84656.0,84655.0,0.2289]
[1731342045065,1.97715259,84656.0,84655.0,0.0489]
[1731342045290,1.91963875,84656.0,84644.0,0.1]
[1731342045522,0.11994075,84655.0,84644.0,0.1]
[1731342046413,0.11994075,84655.0,84640.0,0.0489]
[1731342047719,0.11994075,84655.0,84640.0,0.09368033]
[1731342047845,0.11994075,84655.0,84640.0,0.0539]
[1731342047846,0.12163675,84655.0,84640.0,0.0539]
[1731342048851,0.12163675,84655.0,84641.0,0.005]
[1731342049210,0.001696,84655.0,84644.0,0.005]
[1731342049425,0.001696,84655.0,84646.0,0.005]
[1731342049601,1.732e-05,84655.0,84646.0,0.005]
[1731342050488,0.11994075,84654.0,84643.0,0.005]
[1731342050702,0.11979626,84656.0,84643.0,0.005]
[1731342050935,0.29711066,84656.0,84643.0,0.005]
[1731342051562,0.11979626,84656.0,84643.0,0.005]
[1731342051967,0.29711066,84656.0,84643.0,0.005]
[1731342053516,0.29211066,84656.0,84643.0,0.005]
[1731342053651,0.29211066,84656.0,84642.0,0.005]
[1731342053865,0.29211066,84656.0,84643.0,0.005]
[1731342054065,0.11479626,84656.0,84643.0,0.005]
[1731342054287,0.29211066,84656.0,84643.0,0.005]
[1731342054472,0.29211066,84656.0,84642.0,0.005]
[1731342054671,0.29211066,84656.0,84642.0,0.00436172]
[1731342054880,0.11479626,84656.0,84642.0,0.00436172]
[1731342055103,0.29211066,84656.0,84642.0,0.00436172]
[1731342055537,0.29211066,84656.0,84640.0,0.0539]
[1731342055538,0.11994075,84655.0,84640.0,0.0489]
[1731342055764,0.11994075,84655.0,84640.0,0.05326172]
[1731342055961,0.11994075,84655.0,84640.0,0.0489]
[1731342056588,0.11994075,84655.0,84641.0,0.04126341]
[1731342056802,0.11994075,84655.0,84640.0,0.0489]
[1731342057221,0.11994075,84655.0,84641.0,0.04126341]
[1731342057437,0.11994075,84655.0,84651.0,0.1]
[1731342058295,0.11994075,84655.0,84640.0,0.0489]
[1731342058510,0.11994075,84655.0,84641.0,0.1773144]
[1731342058774,0.11994075,84655.0,84640.0,0.0489]
[1731342059217,0.11465607,84656.0,84642.0,0.1]
[1731342059415,0.1773144,84647.0,84643.0,0.04126341]
[1731342059616,0.11994075,84655.0,84652.0,0.1]
[1731342060041,0.12163675,84655.0,84652.0,0.1]
[1731342060475,0.12163675,84655.0,84644.0,0.000848]
[1731342061282,0.001696,84655.0,84645.0,0.00436172]
[1731342061485,0.001696,84655.0,84646.0,0.00436172]
[1731342062043,0.001696,84655.0,84644.0,0.000848]
[1731342062044,5.70148303,84657.0,84656.0,0.08966172]
[1731342062288,5.70148303,84657.0,84656.0,0.0853]
[1731342062520,5.70148303,84657.0,84656.0,0.08966172]
[1731342062927,5.70148303,84657.0,84656.0,0.23017777]
[1731342063136,5.5564102,84657.0,84656.0,0.35011852]
[1731342063368,5.5064102,84657.0,84656.0,1.26491852]
[1731342063570,5.3783102,84657.0,84656.0,1.26491852]
[1731342063795,5.3783102,84657.0,84656.0,1.27191852]
[1731342064456,5.06249215,84657.0,84656.0,1.63128852]
[1731342064660,5.06249215,84657.0,84656.0,0.73427247]
[1731342064875,5.05523071,84657.0,84656.0,1.85327247]
[1731342065098,5.0010793,84657.0,84656.0,1.85327247]
[1731342065307,5.0010793,84657.0,84656.0,1.80597247]
[1731342065547,5.0010793,84657.0,84656.0,1.69125586]
[1731342065766,5.0010793,84657.0,84656.0,1.20409414]
[1731342066452,5.0010793,84657.0,84656.0,1.21345586]
[1731342066656,5.0010793,84657.0,84656.0,1.20845586]
[1731342067495,5.0010793,84657.0,84656.0,1.30845586]
[1731342067922,5.0010793,84657.0,84656.0,1.30409414]
[1731342068124,5.0010793,84657.0,84656.0,0.35959414]
[1731342068375,5.0010793,84657.0,84656.0,0.40011019]
[1731342068609,5.0010793,84657.0,84656.0,0.39488605]
[1731342068841,5.0010793,84657.0,84656.0,0.35437]
[1731342069513,5.0010793,84657.0,84656.0,0.45437]
[1731342069932,5.12102005,84657.0,84656.0,0.45437]
[1731342070360,5.0010793,84657.0,84656.0,0.45437]
[1731342070580,5.0010793,84657.0,84656.0,0.49924777]
[1731342070798,4.97447242,84657.0,84656.0,0.49924777]
[1731342071003,4.97447242,84657.0,84656.0,0.45873172]
[1731342071618,4.9533168,84657.0,84656.0,0.45873172]
[1731342071826,4.9550128,84657.0,84656.0,0.45873172]
[1731342073236,4.9550128,84657.0,84656.0,0.45437]
[1731342073439,4.9550128,84657.0,84656.0,0.45873172]
[1731342073880,4.9550128,84657.0,84656.0,0.49666444]
[1731342074162,4.9550128,84657.0,84656.0,0.45873172]
[1731342074308,4.9550128,84657.0,84656.0,0.50166444]
[1731342074526,4.9550128,84657.0,84656.0,0.62160519]
[1731342074722,4.9550128,84657.0,84656.0,0.50166444]
[1731342075389,4.9550128,84657.0,84656.0,0.46373172]
[1731342075768,4.9550128,84657.0,84656.0,0.45873172]
[1731342075969,4.9550128,84657.0,84656.0,0.46373172]
[1731342076172,4.9550128,84657.0,84656.0,0.50252438]
[1731342077014,4.9550128,84657.0,84656.0,0.65586632]
[1731342077377,4.37679701,84657.0,84656.0,0.72806513]
[1731342077937,4.37679701,84657.0,84656.0,0.66418581]
[1731342078149,4.37679701,84657.0,84656.0,0.70797847]
[1731342078509,4.37679701,84657.0,84656.0,0.72597847]
[1731342078709,4.37679701,84657.0,84656.0,0.86111349]
[1731342078910,4.37679701,84657.0,84656.0,0.72597847]
[1731342079218,4.37679701,84657.0,84656.0,0.73097847]
[1731342079436,4.37679701,84657.0,84656.0,0.72606513]
[1731342080421,4.04113891,84657.0,84656.0,0.72606513]
[1731342080686,4.04113891,84657.0,84656.0,0.70306513]
[1731342081113,4.04113891,84657.0,84656.0,0.46873172]
[1731342081319,4.04113891,84657.0,84656.0,0.50400193]
[1731342081446,4.04113891,84657.0,84656.0,0.35873172]
[1731342082062,4.04113891,84657.0,84656.0,0.39900193]
[1731342082591,4.04113891,84657.0,84656.0,0.35873172]
[1731342082795,4.04113891,84657.0,84656.0,0.35437]
[1731342084059,4.04113891,84657.0,84656.0,0.45437]
[1731342084304,4.16107966,84657.0,84656.0,0.3047402]
[1731342084579,4.16107966,84657.0,84656.0,0.33988554]
[1731342084580,4.23787966,84657.0,84656.0,0.33988554]
[1731342084805,4.23787966,84657.0,84656.0,0.3055882]
[1731342085228,4.28597966,84657.0,84656.0,0.3055882]
[1731342085435,4.28597966,84657.0,84656.0,0.0493882]
[1731342085436,4.30961794,84657.0,84656.0,0.0493882]
[1731342085683,4.30961794,84657.0,84644.0,0.000848]
[1731342085684,0.00063828,84646.0,84644.0,0.000848]
[1731342085911,0.12057903,84646.0,84644.0,0.000848]
[1731342086129,0.12057903,84646.0,84645.0,0.00541138]
[1731342086333,0.12057903,84646.0,84645.0,0.000848]
[1731342086558,0.12057903,84646.0,84645.0,0.03514534]
[1731342086559,0.11994075,84646.0,84645.0,0.03514534]
[1731342086770,0.11994075,84646.0,84645.0,0.06869282]
[1731342086997,0.2213144,84656.0,84645.0,0.03514534]
[1731342087217,4.04113891,84657.0,84646.0,0.00436172]
[1731342087432,0.1773144,84656.0,84655.0,0.15316104]
[1731342087649,0.1773144,84656.0,84653.0,0.1]
[1731342087903,0.29725515,84656.0,84655.0,0.03429734]
[1731342088106,0.29725515,84656.0,84653.0,0.1]
[1731342088107,0.11994075,84656.0,84653.0,0.1]
[1731342088608,0.11994075,84656.0,84654.0,0.03429734]
[1731342088808,0.11994075,84656.0,84655.0,0.1]
[1731342089020,4.04113891,84657.0,84654.0,0.03429734]
[1731342089246,4.04113891,84657.0,84655.0,0.04027021]
[1731342089710,0.11994075,84656.0,84653.0,0.1]
[1731342089929,4.04113891,84657.0,84655.0,0.2773144]
[1731342090145,4.04113891,84657.0,84655.0,0.1]
[1731342090353,4.04113891,84657.0,84656.0,0.04027021]
[1731342090770,4.04113891,84657.0,84651.0,0.00436172]
[1731342090982,4.04113891,84657.0,84645.0,0.1159337]
[1731342090983,0.1773144,84655.0,84649.0,0.04027021]
[1731342091206,0.11994075,84654.0,84645.0,0.000848]
[1731342091410,0.10361636,84654.0,84646.0,0.04027021]
[1731342091832,0.10361636,84654.0,84652.0,0.15350396]
[1731342092271,0.10361636,84654.0,84651.0,0.15350396]
[1731342092492,0.10361636,84654.0,84648.0,0.15350396]
[1731342092493,0.088458,84654.0,84648.0,0.15350396]
[1731342092703,0.088458,84654.0,84651.0,0.04027021]
[1731342093819,0.088458,84654.0,84645.0,0.000848]
[1731342093820,0.088458,84654.0,84647.0,0.1]
[1731342094036,0.023,84653.0,84645.0,0.100848]
[1731342094248,0.023,84651.0,84645.0,0.100848]
[1731342094474,0.11994075,84650.0,84645.0,0.14111821]
[1731342094724,0.11994075,84650.0,84646.0,0.04027021]
[1731342094936,0.11994075,84650.0,84647.0,0.15350396]
[1731342095154,0.11994075,84650.0,84649.0,0.15349293]
[1731342095369,0.00063828,84648.0,84647.0,0.00506212]
[1731342095592,0.00063828,84646.0,84645.0,0.000848]
[1731342095812,0.00063828,84638.0,84629.0,0.15349293]
[1731342096022,0.023,84629.0,84626.0,0.1773144]
[1731342096229,0.00063828,84627.0,84626.0,0.1773144]
[1731342096458,0.00063828,84627.0,84626.0,0.15365413]
[1731342096673,0.00063828,84630.0,84604.0,0.1150857]
[1731342096882,0.00063828,84630.0,84627.0,0.15364441]
[1731342097114,0.00063828,84630.0,84626.0,0.15364441]
[1731342097369,0.023,84628.0,84625.0,0.15364441]
[1731342097604,0.023,84628.0,84627.0,0.03812771]
[1731342097839,0.00063828,84629.0,84627.0,0.03812771]
[1731342098047,0.11994075,84628.0,84627.0,0.03812771]
[1731342098260,0.11994075,84628.0,84626.0,0.15368424]
[1731342098476,0.00063828,84641.0,84626.0,0.25358342]
[1731342098477,0.11994075,84627.0,84626.0,0.25358342]
[1731342098693,0.11994075,84627.0,84626.0,0.1]
[1731342098903,0.11994075,84627.0,84626.0,0.25364123]
[1731342099103,0.11994075,84627.0,84626.0,0.25363936]
[1731342099337,0.01795611,84661.0,84641.0,0.005]
[1731342099338,0.01595611,84661.0,84641.0,0.005]
[1731342099562,0.1773144,84647.0,84643.0,0.1]
[1731342099813,0.1773144,84647.0,84646.0,0.1]
[1731342100041,0.1773144,84656.0,84646.0,0.1]
[1731342100496,0.1773144,84656.0,84626.0,0.0771]
[1731342100497,0.00063828,84646.0,84638.0,0.1]
[1731342100711,0.0120579,84645.0,84638.0,0.1]
[1731342100921,0.023,84642.0,84638.0,0.1]
[1731342101149,0.023,84640.0,84638.0,0.1]
[1731342101373,0.14294075,84639.0,84638.0,0.1]
[1731342101599,0.14294075,84639.0,84625.0,0.1]
[1731342101818,0.023,84636.0,84625.0,0.1]
[1731342102036,0.023,84634.0,84625.0,0.1]
[1731342102266,0.11994075,84626.0,84619.0,0.15353755]
[1731342102498,0.11994075,84626.0,84615.0,0.03518504]
[1731342102499,0.14294075,84625.0,84615.0,0.15353755]
[1731342102731,0.00063828,84653.0,84624.0,0.1773144]
[1731342102958,0.1773144,84636.0,84630.0,0.15341]
[1731342103166,0.08595611,84661.0,84620.0,0.03954676]
[1731342103167,0.11994075,84635.0,84627.0,0.15777172]
[1731342103378,0.11994075,84635.0,84631.0,0.03660504]
[1731342103647,0.11994075,84635.0,84631.0,0.13660504]
[1731342104146,0.11994075,84635.0,84631.0,0.03660504]
[1731342104363,0.11994075,84635.0,84628.0,0.1]
[1731342104582,0.11994075,84635.0,84628.0,0.13822785]
[1731342105671,0.11994075,84635.0,84630.0,0.15341]
[1731342105894,0.1773144,84656.0,84631.0,0.1]
[1731342106118,0.1773144,84642.0,84638.0,0.25328039]
[1731342106334,0.11994075,84641.0,84640.0,0.1]
[1731342106762,0.11994075,84641.0,84640.0,0.29147469]
[1731342106982,0.11994075,84641.0,84640.0,0.13822785]
[1731342107205,0.01595611,84661.0,84640.0,0.13822785]
[1731342107481,0.29725515,84656.0,84644.0,0.15323842]
[1731342107716,0.29725515,84656.0,84655.0,0.00436172]
[1731342107717,0.11994075,84656.0,84655.0,0.00436172]
[1731342108182,0.4171959,84656.0,84651.0,0.1]
[1731342108407,0.11994075,84656.0,84651.0,0.1]
[1731342108862,0.00063828,84660.0,84642.0,0.1773144]
[1731342108863,0.023,84653.0,84642.0,0.2773144]
[1731342109079,0.11994075,84652.0,84642.0,0.2773144]
[1731342109298,0.023,84651.0,84642.0,0.2773144]
[1731342109525,0.1773144,84647.0,84643.0,0.03744266]
[1731342109744,0.1773144,84656.0,84643.0,0.03744266]
[1731342109745,0.11994075,84646.0,84645.0,0.1]
[1731342109976,0.01659439,84661.0,84645.0,0.1]
[1731342110191,0.29725515,84656.0,84645.0,0.13744266]
[1731342110421,0.11994075,84656.0,84647.0,0.1]
[1731342110652,0.11994075,84656.0,84646.0,0.03744266]
[1731342111590,0.14294075,84655.0,84646.0,0.03744266]
[1731342111809,0.11994075,84654.0,84646.0,0.03744266]
[1731342112033,0.11994075,84654.0,84644.0,0.1]
[1731342112712,0.11994075,84654.0,84641.0,0.1773144]
[1731342112932,0.11994075,84654.0,84645.0,0.13744266]
[1731342113152,0.11994075,84654.0,84648.0,0.25323842]